Cogmind - Beta 12 @@@ ROGUE MODE // 2024.01.12 @ 14:16:46 Player: Dosh Result: Destroyed by as-43024 with Assembled Rifle Performance ------------- Evolutions (0) 0 Regions Visited (4) 800 Robots Destroyed (40) 200 Value Destroyed (996) 996 Prototype IDs (23) 460 Alien Tech Used (0) 0 Bonus (300) 300 TOTAL SCORE: 2756 Bonus ------- Aligned with FarCom 300 Cogmind --------- Core Integrity 0/250 Matter 258/300 Energy 160/160 System Corruption 2% Temperature Cool (0) Movement Treading (160) Location -9/Mines Parts ------- > --- POWER (1) -------- Light Nuclear Core > --- PROPULSION (2) --- Light Treads Light Treads > --- UTILITY (2) ------ Large Storage Unit Medium Armor Plating > --- WEAPON (2) ------- Heavy Assault Rifle Heavy Assault Rifle > --- INVENTORY (15) --- Wheel High-capacity Storage Unit Improved Terrain Scanner Medium Armor Plating Hacking Suite Hacking Suite Heavy Assault Rifle Heavy Assault Rifle Bore Cannon Mini Grenade Launcher Mini Grenade Launcher Longsword +1 Peak State ------------ > --- POWER ------------ Ion Engine > --- PROPULSION ------- Light Treads Light Treads > --- UTILITY ---------- Large Storage Unit Medium Armor Plating > --- WEAPON ----------- Heavy Assault Rifle Longsword +1 > --- INVENTORY -------- Light Nuclear Core Wheel High-capacity Storage Unit Improved Terrain Scanner Medium Armor Plating Hacking Suite Hacking Suite Heavy Assault Rifle Heavy Assault Rifle Heavy Assault Rifle Bore Cannon Mini Grenade Launcher Mini Grenade Launcher [Rating: 19] Favorites ----------- Power Ion Engine Engine Ion Engine Power Core Light Nuclear Core Propulsion Light Treads Treads Light Treads Wheel Compact Wheel Utility Large Storage Unit Storage Large Storage Unit Protection Medium Armor Plating Weapon Heavy Assault Rifle Energy Gun EM Pulse Gun Ballistic Gun Heavy Assault Rifle Launcher Mini Grenade Launcher Slashing Weapon Longsword +1 Build | -11 -10 -10 -10 -9 ------- Run | Jun Mat Min Exi Min Slots Evolved . | . . . . . Power . | . . . . . Propulsion . | . . . . . Utility . | . . . . . Weapon . | . . . . . Parts Attached 29 | 6 14 5 . 4 Power 4 | 1 2 . . 1 Engine 3 | 1 2 . . . Core 1 | . . . . 1 Reactor . | . . . . . Propulsion 7 | 2 3 1 . 1 Treads 6 | 2 2 1 . 1 Leg . | . . . . . Wheel 1 | . 1 . . . Hover . | . . . . . Flight . | . . . . . Utility 8 | 1 6 1 . . Device . | . . . . . Storage 4 | 1 3 . . . Processor . | . . . . . Hackware . | . . . . . Protection 4 | . 3 1 . . Artifact . | . . . . . Weapon 10 | 2 3 3 . 2 Energy Gun 1 | 1 . . . . Energy Cannon . | . . . . . Ballistic Gun 6 | 1 3 1 . 1 Ballistic Cannon . | . . . . . Launcher 2 | . . 2 . . Special Weapon . | . . . . . Impact Weapon . | . . . . . Slashing Weapon 1 | . . . . 1 Piercing Weapon . | . . . . . Special Melee Weapon . | . . . . . Unidentified Prototypes . | . . . . . Parts Lost 6 | . 2 2 . 2 Power 2 | . 1 . . 1 Propulsion 3 | . 1 1 . 1 Utility 1 | . . 1 . . Weapon . | . . . . . Highest Loss Streak 2 | . 2 1 . 1 To Critical Strikes . | . . . . . Average Slot Usage (%) 91 | . 92 90 85 95 Engine 13 | . 13 14 14 5 Treads 26 | . 26 27 28 26 Storage 15 | . 16 14 14 14 Protection 6 | . 5 5 14 14 Energy Gun 2 | . 4 . . . Ballistic Gun 22 | . 23 24 14 21 Launcher 1 | . . 3 . . Naked Turns . | . . . . . Heaviest Build 38 | 12 38 38 35 38 Greatest Support 40 | 40 40 40 40 40 Greatest Overweight (x) 2 | . 2 . . 1 Average Overweight (x) . | . . . . . Largest Inventory Capacity 15 | 8 15 15 15 15 Average Capacity 13 | 6 13 15 15 15 Most Carried 15 | 3 15 15 15 15 Average Carried 10 | 1 8 14 14 12 Final Capacity 15 | 8 15 15 15 15 Final Carried 15 | 3 14 13 15 12 Class Distribution -------------------- 100% | Mutant Dominant Class ---------------- Mutant | -10/Materials Mutant | -10/Mines Mutant | -10/Exiles Mutant | -9/Mines Resources | -11 -10 -10 -10 -9 ----------- Run | Jun Mat Min Exi Min Matter Collected 996 | 174 423 359 . 40 Remotely . | . . . . . Salvage Created 1244 | 17 567 542 . 118 Parts 93 | 3 42 42 . 6 Haulers Intercepted 2 | . 2 . . . Recyclers Shooed 1 | . 1 . . . Parts Field Recycled . | . . . . . Retrieved Matter . | . . . . . Parts Self-Destructed . | . . . . . Prevented . | . . . . . Kills | -11 -10 -10 -10 -9 ------- Run | Jun Mat Min Exi Min Combat Hostiles Destroyed 34 | . 13 16 . 5 Melee 4 | . . . . 4 Guns 25 | . 11 13 . 1 AOE 5 | . 2 3 . . Classes Destroyed 8 | 1 5 2 . . Worker 1 | . . 1 . . Tunneler 3 | 1 . 2 . . Hauler 2 | . 2 . . . Operator 2 | . 2 . . . Watcher 2 | . 2 . . . Swarmer 8 | . 5 3 . . Grunt 22 | . 8 12 . 2 Assembled 4 | . . 1 . 3 Best Kill Streak 5 | 1 5 4 . 2 Combat Bots Only 5 | . 5 4 . 2 Max Kills in Single Turn 3 | 1 2 3 . 1 Gunslinging 1 | . . 1 . . Exploded 3 | . 2 3 . . Melee 1 | . . . . 1 Uniques/NPCs Destroyed . | . . . . . Combat | -11 -10 -10 -10 -9 -------- Run | Jun Mat Min Exi Min Damage Taken 1395 | . 542 604 . 249 Core 252 | . 88 116 . 48 Absorbed by Shields . | . . . . . Core Remaining (%) 100 | 100 . . . . Volleys Fired 116 | 5 60 43 . 8 Largest 2 | 2 2 2 . 2 Hottest 60 | 60 60 53 . 46 Shots Fired 214 | 10 121 69 . 14 Gun 211 | 10 121 66 . 14 Cannon . | . . . . . Launcher 3 | . . 3 . . Special . | . . . . . Kinetic 186 | 5 101 66 . 14 Thermal . | . . . . . Explosive 3 | . . 3 . . Electromagnetic 25 | 5 20 . . . Robot Hit Streak 10 | 3 10 8 . 3 Robot Miss Streak 3 | 2 3 3 . 2 Penetration Max . | . . . . . Secondary Targets 4 | . 2 2 . . Max Gunslinging Chain 1 | . 1 1 . . Shots Hit Robots 135 | 6 76 39 . 14 Core Hits 63 | 1 32 23 . 7 Critical Kills . | . . . . . Critical Parts Destroyed . | . . . . . Critical Strikes 2 | 1 1 . . . Corrupt 2 | 1 1 . . . Melee Attacks 11 | . . . . 11 Impact . | . . . . . Slashing 11 | . . . . 11 Piercing . | . . . . . Sneak Attacks . | . . . . . Combat Hostiles . | . . . . . Follow-up Attacks . | . . . . . Damage Inflicted 2508 | 82 1086 890 . 450 Guns 1738 | 82 903 650 . 103 Cannons . | . . . . . Explosions 378 | . 160 218 . . Melee 347 | . . . . 347 Ramming 45 | . 23 22 . . Kinetic 1531 | 40 738 650 . 103 Thermal 160 | . 160 . . . Explosive 218 | . . 218 . . Electromagnetic 207 | 42 165 . . . Impact . | . . . . . Slashing 347 | . . . . 347 Piercing . | . . . . . Highest Corruption 2 | . 2 2 2 2 Average Corruption 2 | . 2 2 2 2 Corruption Purged . | . . . . . Corruption Blocked . | . . . . . Effects 26 | . 18 7 1 . Message Errors 4 | . 4 . . . Matter Fused 8 | . 6 2 . . Heat Flow Errors 3 | . 1 1 1 . Energy Discharges 2 | . 2 . . . Data Loss (minor) 6 | . 3 3 . . Data Loss (major) 1 | . . 1 . . Misfires 1 | . 1 . . . Alerts 1 | . 1 . . . Overload Shots . | . . . . . Overflow Damage . | . . . . . Projectiles . | . . . . . Explosions . | . . . . . Melee . | . . . . . Knockbacks 1 | . 1 . . . Impact 1 | . 1 . . . Kinetic . | . . . . . Secondary . | . . . . . Self-Inflicted Damage 44 | . 44 . . . Shots 1 | . 1 . . . Rammed 6 | 1 4 1 . . Targets Rammed 8 | 1 4 3 . . Kicked . | . . . . . Crushed 2 | . . 2 . . Highest Temperature 167 | . 167 138 123 14 Average Temperature 44 | . 46 39 68 12 Received Heat Transfer 603 | . 234 246 . 123 Siege Activations . | . . . . . Robots Corrupted . | . . . . . Combat Hostiles . | . . . . . Parts Fried 1 | . 1 . . . Impact Corruptions . | . . . . . Robots Melted . | . . . . . Combat Hostiles . | . . . . . Parts Melted 2 | . 2 . . . Heat Transferred 250 | . 250 . . . Parts Sabotaged . | . . . . . Parts Stolen . | . . . . . Parts Stripped . | . . . . . Power Chain Reactions 1 | . 1 . . . Missiles Intercepted . | . . . . . Alert | -11 -10 -10 -10 -9 ------- Run | Jun Mat Min Exi Min Peak Influence 275 | 5 222 275 . 60 Initial 23 | . 3 23 . . Average 110 | 1 92 160 . 46 Maximum Alert Level 1 | . 1 1 . . Low Security (%) 83 | 100 87 72 . 100 Level 1 16 | . 12 27 . . Level 2 . | . . . . . Level 3 . | . . . . . Level 4 . | . . . . . Level 5 . | . . . . . High Security . | . . . . . Max Security . | . . . . . Squads Dispatched 5 | . 5 . . . Investigation 4 | . 4 . . . Extermination . | . . . . . Reinforcement 1 | . 1 . . . Assault . | . . . . . Garrison . | . . . . . Intercept . | . . . . . Searches Triggered . | . . . . . Construction Impeded . | . . . . . Haulers Reinforced . | . . . . . Active Scanning Responses . | . . . . . Cargo Convoy Interrupts . | . . . . . Stealth | -11 -10 -10 -10 -9 --------- Run | Jun Mat Min Exi Min Distress Signals . | . . . . . Communications Jammed . | . . . . . Distress Signals . | . . . . . Times Spotted 51 | . 27 18 . 6 Peak Tracking Total 7 | . 7 3 . 2 Tactical Retreats 2 | . . 2 . . Traps | -11 -10 -10 -10 -9 ------- Run | Jun Mat Min Exi Min Traps Triggered 2 | . 2 . . . Indirectly . | . . . . . Trap Hack Attempts . | . . . . . Triggered . | . . . . . Disarmed . | . . . . . Reprogrammed . | . . . . . Reused . | . . . . . Traps Extracted . | . . . . . Installed . | . . . . . Triggered . | . . . . . Machines | -11 -10 -10 -10 -9 ---------- Run | Jun Mat Min Exi Min Machines Disabled . | . . . . . Max in Single Turn . | . . . . . Machines Repaired . | . . . . . Machines Sabotaged . | . . . . . Overloaded Fab Kills . | . . . . . Hacking | -11 -10 -10 -10 -9 --------- Run | Jun Mat Min Exi Min Machines Accessed 10 | . 9 . 1 . Terminals 6 | . 6 . . . Fabricators . | . . . . . Repair Stations 1 | . 1 . . . Recycling Units 2 | . 2 . . . Scanalyzers . | . . . . . Garrison Access . | . . . . . Total Hacks 26 | . 25 . 1 . Successful 19 | . 18 . 1 . Failed 7 | . 7 . . . Catastrophic . | . . . . . Database Lockouts . | . . . . . Manual 21 | . 20 . 1 . Terminals 19 | . 19 . . . Fabricators . | . . . . . Repair Stations 4 | . 4 . . . Recycling Units 2 | . 2 . . . Scanalyzers . | . . . . . Garrison Access . | . . . . . Terminal Hacks 11 | . 10 . 1 . Part Schematic 1 | . 1 . . . Robot Analysis 6 | . 6 . . . Locate Traps 1 | . 1 . . . Recall Investigation 1 | . 1 . . . Hauler Manifests 1 | . 1 . . . EX-Prototype ID Bank 1 | . . . 1 . Fabricator Hacks . | . . . . . Repair Station Hacks 2 | . 2 . . . Scan Component 1 | . 1 . . . Repair 1 | . 1 . . . Recycling Unit Hacks . | . . . . . Scanalyzer . | . . . . . Garrison Access Hacks . | . . . . . Unauthorized Hacks 6 | . 6 . . . Terminals 4 | . 4 . . . Botnet 3 | . 3 . . . Operators 1 | . 1 . . . Fabricators . | . . . . . Repair Stations . | . . . . . Recycling Units 2 | . 2 . . . Tunnel 2 | . 2 . . . Scanalyzers . | . . . . . Garrison Access . | . . . . . Data Cores Recovered 1 | . 1 . . . Used 1 | . 1 . . . Hacking Detections 6 | . 6 . . . Full Trace Events 1 | . 1 . . . Feedback Events . | . . . . . Feedback Blocked . | . . . . . Robot Schematics Acquired . | . . . . . Robots Built . | . . . . . Authchips . | . . . . . Time . | . . . . . Total Robot Build Rating . | . . . . . Part Schematics Acquired 1 | . 1 . . . Parts Built . | . . . . . Authchips . | . . . . . Time . | . . . . . Total Part Build Rating . | . . . . . Parts Repaired 1 | . 1 . . . Time 36 | . 36 . . . Parts Recycled . | . . . . . Recycled Matter . | . . . . . Retrieved Matter . | . . . . . Retrieved Components . | . . . . . Parts Scanalyzed . | . . . . . Part Schematics Acquired . | . . . . . Parts Damaged . | . . . . . Bothacking | -11 -10 -10 -10 -9 ------------ Run | Jun Mat Min Exi Min Used RIF Installer . | . . . . . Robots Hacked . | . . . . . Non-combat . | . . . . . Combat . | . . . . . Robot Hacks Applied . | . . . . . Relay Couplers Released . | . . . . . Fabnet Peak Effective % . | . . . . . Robots Rewired . | . . . . . Allies Hacked . | . . . . . Hacks Repelled . | . . . . . Allies | -11 -10 -10 -10 -9 -------- Run | Jun Mat Min Exi Min Total Allies . | . . . . . Largest Group . | . . . . . Highest-Rated Group . | . . . . . Highest-Rated Ally . | . . . . . Total Orders . | . . . . . Ally Attacks . | . . . . . Total Damage . | . . . . . Kills . | . . . . . Allies Corrupted . | . . . . . Allies Melted . | . . . . . Intel | -11 -10 -10 -10 -9 ------- Run | Jun Mat Min Exi Min Robot Analysis Total 6 | . 6 . . . Derelict Logs Recovered 2 | . . 2 . . Drone Launches . | . . . . . Drone Recoveries . | . . . . . Exploration | -11 -10 -10 -10 -9 ------------- Run | Jun Mat Min Exi Min Turns Passed 2884 | 103 1466 862 354 99 Spaces Moved 1468 | 49 722 446 221 30 Core 3 | 3 . . . . Treads 1392 | 46 649 446 221 30 Legs . | . . . . . Wheels 73 | . 73 . . . Hover . | . . . . . Flight . | . . . . . Fastest Speed 50 | 50 130 160 160 160 Average Speed 159 | 153 158 160 160 162 Slowest Speed 240 | 160 240 160 160 240 Overloaded Moves . | . . . . . Propulsion Burnouts . | . . . . . Robots Hopped . | . . . . . Cave-ins Triggered . | . . . . . Exploration Rate (%) 49 | 3 94 81 60 8 Regions Visited 4 Branch Regions 3 Pre-discovered Areas 2 | . 2 . . . Known Exits Taken . | . . . . . Unknown Exits Taken 4 | 1 1 1 1 . Scrap Searched 2 | . . 2 . . Spaces Dug . | . . . . . Terrain Destroyed 33 | . 5 28 . . Melee . | . . . . . Projectile . | . . . . . AOE 33 | . 5 28 . . Terrain Rammed . | . . . . . Walls Destroyed . | . . . . . Machines Disabled . | . . . . . Actions | -11 -10 -10 -10 -9 --------- Run | Jun Mat Min Exi Min Total 1791 | 63 928 523 222 55 Wait 131 | . 105 24 . 2 Move 1465 | 49 721 445 220 30 Hop . | . . . . . Pick Up 20 | 3 14 2 1 . Fast Attach 11 | 6 5 . . . Attach 9 | . 4 2 . 3 Detach 4 | . 3 . 1 . Swap 9 | . 5 3 . 1 Drop 8 | . 7 1 . . Fire 116 | 5 60 43 . 8 Melee 11 | . . . . 11 Ram 1 | . 1 . . . Kick . | . . . . . Crush 6 | . 3 3 . . Escape Stasis . | . . . . . Rewire . | . . . . . Trap . | . . . . . Miscellaneous . | . . . . . Route ------- -11/Junkyard -10/Materials (discovered 4 exits: [*Mat x3] / [*Min]) -10/Mines (discovered 3 exits: [*Mat x2] / *Exi) -10/Exiles -9/Mines History --------- Turn | Location | Event 4 | -11/Junkyard | Discovered new exit (range 16) 104 | -11/Junkyard | Entered Materials 314 | -10/Materials | Build established: Mutant 463 | -10/Materials | Discovered new exit (range 14) 671 | -10/Materials | Discovered new exit (range 16) 1119 | -10/Materials | Repaired Broken Ion Engine 1166 | -10/Materials | Discovered new exit (range 9) 1319 | -10/Materials | Discovered new exit (range 13) 1570 | -10/Materials | Entered Mines 1584 | -10/Mines | Met a Derelict bent on vengeance 1642 | -10/Mines | Learned location of 1 exit from Materials 1674 | -10/Mines | Learned 2 Materials zone layouts 1701 | -10/Mines | A weapon hastily lodged in a ceiling crevice suddenly fell to the ground 1784 | -10/Mines | Core integrity fell below 50% 1809 | -10/Mines | Discovered new exit (range 10) 2017 | -10/Mines | Deemed a non-threat by the Exiles lab entrance 2019 | -10/Mines | Discovered new exit (range 5) 2157 | -10/Mines | Discovered new exit (range 13) 2231 | -10/Mines | Excavation squad dispatched 2231 | -10/Mines | A large section of the Mines collapsed 2335 | -10/Mines | Core integrity fell below 20% 2432 | -10/Mines | Entered Exiles 2473 | -10/Exiles | Met 8R-AWN 2499 | -10/Exiles | Met EX-HEX 2542 | -10/Exiles | Met EX-BIN 2567 | -10/Exiles | Aligned with FarCom system 2569 | -10/Exiles | Given EX-Vault access code 2609 | -10/Exiles | Opened EX-Vault 2623 | -10/Exiles | Found Longsword +1 2656 | -10/Exiles | Warned to stay clear of 0b10 Research branches 2706 | -10/Exiles | Met EX-DEC 2767 | -10/Exiles | Discovered new exit (range 14) 2786 | -10/Exiles | Left Exiles lab with Longsword +1 2786 | -10/Exiles | Entered Mines 2787 | -9/Mines | Assembled infested the area 2885 | -9/Mines | Destroyed by as-43024 with Assembled Rifle Last Messages --------------- your atomic chain! 02767_ EXIT=FOUND 02772_ System corrupted: Heat flow error (+138). LOCATION=UNKNOWN GOAL=ESCAPE 02786_ Receiving FarCom transmissions... 02787_ ALERT: Infestation in the mines, dispatching Demolisher response squad. 02788_ Lgt. Treads destroyed. 02795_ Critical hit (Burn: +37). 02798_ G-47 Trooper destroyed. 02800_ G-34 Mercenary destroyed. 02802_ Acquired 20 matter. 02811_ Acquired 6 matter. 02822_ Ion Engine destroyed. 02822_ as-71902 destroyed. 02826_ as-06237 destroyed. 02836_ Acquired 10 matter. 02837_ Acquired 4 matter. 02866_ as-68940 destroyed. Map ----- +----------------------------------------------------+ | ???????????????????????????????????????????????? | | ???????????????????????????????????????????????? | | ???????????????????????????????????????????????? | | ???????????????????????????????????????????????? | | ???????????????????????????????????????????????? | | ???????????????????????????????????????????????? | | ???????????????????????????????????????????????? | | ???????????????????????????????????????????????? | | ???????????????????????????????????????????????? | | ???????????????????????????????????????????????? | | ???????????????????????????????????????????????? | | ???????????????????????????????????????????????? | | ???????????????????????????????????????????????? | | ??????????????????????????????????d????????????? | | ???????????????????????????????????????????????? | | ???????????????????????????????????????????????? | | ???????????????????????????????????????????????? | | ???????????????????????????????????????????????? | | ???????????????????????????????????????????????? | | ???????????????????????????????????????????????? | | ???????????????????????????????????????????????? | | ???????????????#######?????????????????????????? | | ?????????????### ##????????????????????????? | | ????????????## #????????????????????????? | | ???????????## ###### ###???????????????? | | ??????????## < @ % a #??????????????? | | ??????????# ############# #??????????????? | | ??????????# ##????????????????????????????? | | ??????????# #?????????????????????????????? | | ??????????## #?????????????????????????????? | | ???????????# # ##?????????????????????????????? | | ???????????# ####??????????????????????????????? | | ???????????# #?????????????????????????????????? | | ???????????# #?????????????????????????????????? | | ???????????# #?????????????????????????????????? | | ???????????# #?????????????????????????????????? | | ???????????# #?????????????????????????????????? | | ???????????#%#?????????????????????????????????? | | ????########*#?????????????????????????????????? | | ????# =##*#?????????????????????????????????? | | ????# %[%=#?????????????????????????????????? | | ????# =####?????????????????????????????????? | | ????# """ #????????????????????????????????????? | | ????# """ #????????????????????????????????????? | | ????# """ #????????????????????????????????????? | | ????# ?????????????????????????????????????? | | ?????#####?????????????????????????????????????? | | ???????????????????????????????????????????????? | | | | | +----------------------------------------------------+ Best States ------------- Heat Dissipation 25 Energy Generation 14 Energy Capacity 250 Matter Stores 300 Matter Capacity 300 Sight Range 16 Terrain Scan Density 10 Armor Coverage 225 Weapon Shielding 33 Evasion (%) 40 Recoil Reduction 2 Item Schematics ----------------- Huge Storage Unit | -10/Materials | Hacked Robot Schematics ------------------ None Fabricated ------------ Nothing Alien Tech Used ----------------- None Achievements -------------- None Challenges ------------ None Game ------ Seed AlertThermicDissipator Manual? 0 Play Time 00:13:06 Cumulative 97.1 hours Start 2024.01.12 @ 14:04:13 End 2024.01.12 @ 14:16:46 Sessions 1 Manual Loads 0 Difficulty Rogue Special Mode None Game No. 116 Rogue 116 Adventurer 0 Explorer 0 Win Type - Total 1 Types 1/0/0/0/0/0/0/0/0 Lore% 49 Gallery% 56 Achievement% 48 Wizard Run 0 Options --------- ASCII 0 Keyboard 1 Movement Numpad Keybinds 0 Fullscreen 2 Font 18/SmallcapsGlow Map View 76x50 Tactical HUD 1 Map Filters NONE Filters NONE Steam 1 RUN: 7ca9d8df-a92e-4187-8adf-593dfb3073ae